bitfinex/quotes_ETHUSD_20250213
["timestamp","ask_amount","ask_price","bid_price","bid_amount"]
[1739433950822,0.565,2685.2,2684.8,4.45353634]
[1739433951234,0.56500487,2685.2,2684.9,3.72442]
[1739433951773,0.01500487,2685.2,2685.1,3.72425]
[1739433952468,0.11133126,2685.2,2685.1,3.72425]
[1739433952667,0.01500487,2685.2,2685.1,3.72425]
[1739433952970,0.29100487,2685.2,2685.1,3.72425]
[1739433953343,0.38731397,2685.2,2685.1,3.72425]
[1739433954222,0.09631397,2685.2,2685.1,4.88801337]
[1739433954546,0.0963091,2685.2,2685.1,4.88801337]
[1739433954747,0.276,2685.3,2685.2,3.72411]
[1739433956248,0.01500487,2685.7,2685.6,3.72356]
[1739433956571,0.09648028,2685.7,2685.6,3.72356]
[1739433956801,0.00750487,2685.7,2685.6,3.76079039]
[1739433956955,0.28350487,2685.7,2685.6,3.76079039]
[1739433957135,0.29100487,2685.7,2685.6,3.76079039]
[1739433957328,0.7881,2685.6,2685.3,3.7239]
[1739433957605,0.7881,2685.6,2685.5,3.7237]
[1739433957934,0.88121149,2685.6,2685.4,0.75615479]
[1739433958276,0.88121149,2685.6,2685.4,3.72381]
[1739433958441,0.88121149,2685.6,2685.3,3.72388]
[1739433958635,0.88121149,2685.6,2685.3,4.48264196]
[1739433959149,0.0075,2685.4,2684.9,6.72447]
[1739433959346,0.09322259,2685.3,2684.9,3.0]
[1739433959545,0.015,2685.2,2685.1,3.72418]
[1739433959749,0.10814439,2685.2,2684.9,6.72448]
[1739433960367,0.0075,2685.0,2684.8,0.72725241]
[1739433960538,0.0075,2685.0,2684.9,3.72453]
[1739433961760,0.0075,2685.0,2684.8,0.72725241]
[1739433961761,0.565,2685.0,2684.8,0.72725241]
[1739433962135,0.56500487,2685.0,2684.8,0.72725241]
[1739433962410,1.07307836,2685.0,2684.4,3.72512]
[1739433962675,0.55,2684.8,2684.4,3.72512]
[1739433962877,0.291,2684.7,2684.4,3.72512]
[1739433963751,0.291,2684.7,2684.5,3.72504]
[1739433964284,0.291,2684.7,2684.6,3.72494]
[1739433965079,0.291,2684.7,2684.4,4.45411348]
[1739433965276,0.291,2684.7,2684.4,0.72897348]
[1739433965577,0.291,2684.7,2684.5,3.72506]
[1739433966552,0.29100487,2684.7,2684.4,0.72897348]
[1739433966785,0.0075,2684.5,2684.1,3.72555]
[1739433966939,0.0075,2684.5,2683.9,4.53522]
[1739433966940,0.0075,2684.3,2683.9,4.53522]
[1739433967139,0.0075,2684.3,2684.0,3.72569]
[1739433967466,0.5575,2684.2,2683.8,0.75049712]
[1739433967684,3.74078,2684.0,2683.8,0.75049712]
[1739433968139,0.565,2684.0,2683.8,0.75049712]
[1739433968344,4.29078,2684.0,2683.8,0.75049712]
[1739433969362,4.29092,2683.9,2683.8,0.75049712]
[1739433969669,5.22601049,2683.9,2683.3,3.72666]
[1739433969852,4.29092,2683.9,2683.3,7.45331]
[1739433970053,0.565,2683.8,2683.3,3.72665]
[1739433970259,0.015,2683.6,2683.4,3.7266]
[1739433970442,0.01500487,2683.6,2683.3,3.72665]
[1739433970842,0.01500487,2683.6,2683.4,3.0]
[1739433971042,0.1069203,2683.5,2683.4,3.0]
[1739433971262,0.015,2683.5,2683.4,6.72661]
[1739433971460,0.1069203,2683.5,2683.4,6.76387144]
[1739433971664,0.015,2683.5,2683.4,6.72661]
[1739433972200,0.1069203,2683.5,2683.4,6.76387149]
[1739433972417,0.015,2683.5,2683.4,6.76387149]
[1739433972701,4.87e-06,2683.6,2683.5,3.72647]
[1739433972865,0.27600487,2683.6,2683.5,3.72647]
[1739433973475,4.87e-06,2683.6,2683.5,3.72647]
[1739433973968,0.01500487,2683.6,2683.4,7.48702573]
[1739433974168,0.10636673,2683.5,2683.4,7.48702573]
[1739433974887,0.10636673,2683.5,2683.4,3.76048573]
[1739433975122,0.10636673,2683.5,2683.4,0.76048573]
[1739433975327,0.10636673,2683.5,2683.4,4.48709573]
[1739433975838,0.5951256,2683.6,2683.4,4.48709573]
[1739433976015,0.08814819,2683.5,2683.4,0.76048573]
[1739433976213,0.08814819,2683.5,2683.1,3.72693]
[1739433976418,0.55,2683.4,2683.0,3.72712]
[1739433976617,0.55,2683.4,2683.1,3.727]
[1739433976802,0.08773199,2683.3,2683.1,3.727]
[1739433977345,0.08773199,2683.3,2683.2,3.72689]
[1739433977918,0.10273199,2683.3,2683.2,3.72689]
[1739433978342,0.08773199,2683.3,2683.2,3.72689]
[1739433978743,0.015,2683.5,2683.3,3.72663]
[1739433978931,0.291,2683.4,2683.3,3.72663]
[1739433979305,0.276,2683.4,2683.3,3.76389377]
[1739433979504,0.276,2683.4,2683.3,3.72663]
[1739433979805,5.2975,2683.7,2683.6,3.72633]
[1739433980005,5.5735,2683.7,2683.6,3.72633]
[1739433980205,0.276,2683.7,2683.6,3.72633]
[1739433980437,0.276,2683.7,2683.6,3.76359003]
[1739433981119,0.8274,2684.1,2684.0,3.72578]
[1739433981447,1.1034,2684.1,2684.0,3.72578]
[1739433981815,0.291,2684.1,2684.0,3.72578]
[1739433982147,0.276,2684.2,2684.1,3.72564]
[1739433983471,0.36101061,2684.2,2684.1,3.72564]
[1739433983671,0.08501061,2684.2,2684.1,7.52249066]
[1739433983867,0.08501061,2684.2,2684.1,7.48524]
[1739433984092,5.29,2684.6,2684.5,3.72508]
[1739433987270,6.178,2684.7,2684.5,3.72508]
[1739433987469,6.178,2684.7,2684.6,3.72494]
[1739433987840,0.015,2684.6,2684.4,3.72511]
[1739433988258,0.015,2684.6,2684.5,3.72508]
[1739433988645,6.178,2684.7,2684.6,3.72494]
[1739433988951,0.0075,2684.6,2684.5,3.72508]
[1739433990129,6.178,2684.7,2684.6,4.53024]
[1739433990463,5.902,2684.7,2684.6,11.1004926]
[1739433993812,0.276,2685.0,2684.9,6.72453]
[1739433994272,0.36103248,2685.0,2684.9,6.72453]
[1739433994633,0.36103248,2685.0,2684.9,7.54743]
[1739433994833,0.276,2685.0,2684.9,11.1176826]
[1739433995456,0.36103248,2685.0,2684.9,11.1176826]
[1739433995849,0.36103248,2685.0,2684.9,6.72453]
[1739433996044,0.276,2685.0,2684.9,6.72453]
[1739433996379,0.3610368,2685.0,2684.9,6.72453]
[1739433997292,0.3610368,2685.0,2684.9,7.47779802]
[1739433997494,0.3760368,2685.0,2684.6,7.2951026]
[1739433997735,0.0075,2684.8,2684.5,3.0]
[1739433997943,0.0075,2684.8,2684.6,0.74395738]
[1739433998247,0.10042154,2684.7,2684.5,3.72506]
[1739433998756,0.10042154,2684.7,2684.6,3.72494]
[1739433999241,0.276,2684.8,2684.7,3.72481]
[1739433999393,0.36893926,2684.8,2684.7,3.72481]
[1739434000362,0.36893926,2684.8,2684.5,4.46345548]
[1739434000860,0.015,2684.7,2684.4,6.72521]
[1739434001182,0.015,2684.4,2684.0,3.72569]
[1739434001313,0.565,2684.4,2684.0,3.72577]
[1739434001519,0.7858,2684.2,2684.0,3.72577]
[1739434001821,0.09255042,2684.1,2684.0,4.46839114]
[1739434002013,0.09255042,2684.1,2684.0,7.46839114]
[1739434002210,0.09255042,2684.1,2684.0,0.74269114]
[1739434002410,0.10005042,2684.1,2684.0,0.74269114]
[1739434002740,0.015,2684.0,2683.9,3.72592]
[1739434002938,0.015,2684.0,2683.9,4.45290687]
[1739434003140,0.015,2684.0,2683.4,11.0769226]
[1739434003141,0.09964932,2684.0,2683.6,3.72625]
[1739434003350,0.09964932,2684.0,2683.6,3.72624]
[1739434003702,0.09964932,2684.0,2683.8,3.72601]
[1739434004163,0.08464932,2684.0,2683.9,3.72592]
[1739434004665,0.0075,2683.9,2683.8,3.0]
[1739434004805,0.8142,2683.9,2683.6,0.74397499]
[1739434004996,0.36029657,2683.8,2683.7,3.72617]
[1739434005200,0.36029657,2683.8,2683.6,0.74397499]
[1739434005411,0.36029657,2683.8,2683.7,3.72619]
[1739434005943,0.36029657,2683.8,2683.7,7.2964426]
[1739434010316,0.36029657,2683.8,2683.7,3.72619]
[1739434011707,0.08429657,2683.8,2683.7,11.0689426]
[1739434012106,0.276,2684.2,2684.1,3.72564]
[1739434012647,0.276,2684.2,2684.1,6.72564]
[1739434012850,0.276,2684.2,2684.1,7.50954]
[1739434013047,0.276,2684.4,2684.3,3.72532]
[1739434013549,0.276,2684.5,2684.3,3.72532]
[1739434013846,0.276,2684.5,2684.2,3.72549]
[1739434014218,0.276,2684.5,2684.2,3.72538]
[1739434014425,0.276,2684.5,2684.1,6.72551]
[1739434014735,0.276,2684.5,2684.2,3.7255]
[1739434014917,0.276,2684.5,2684.1,6.72551]
[1739434015105,0.276,2684.5,2684.1,10.45107]
[1739434015503,0.276,2684.5,2684.2,3.72546]
[1739434016444,0.276,2684.5,2684.1,3.0]
[1739434016651,0.7753,2684.4,2684.1,3.0]
[1739434017151,0.7753,2684.4,2684.2,3.72543]
[1739434017308,0.7753,2684.4,2684.3,3.72536]
[1739434017514,0.276,2684.5,2684.3,3.72536]
[1739434017734,0.276,2684.5,2684.1,6.72553]
[1739434017936,0.015,2684.4,2684.1,6.72553]
[1739434018250,0.276,2684.8,2684.7,3.72481]
[1739434018548,0.35073989,2684.8,2684.7,3.72481]
[1739434021129,0.07473989,2684.8,2684.7,4.50721]
[1739434021452,0.276,2684.9,2684.7,3.72481]
[1739434021651,0.07444433,2684.8,2684.7,3.72481]
[1739434021861,0.08194433,2684.8,2684.4,0.8157]
[1739434022026,0.85064433,2684.8,2684.5,3.72506]
[1739434022653,0.015,2684.7,2684.3,3.72535]
[1739434022812,0.07469746,2684.6,2684.3,3.72535]
[1739434023553,0.08219746,2684.6,2684.5,3.72508]
[1739434023972,0.08219746,2684.6,2684.3,7.45064]
[1739434024764,0.08219746,2684.6,2684.4,3.72518]
[1739434025265,0.08219746,2684.6,2684.5,3.72508]
[1739434025485,0.08219746,2684.6,2684.4,7.45032]
[1739434025831,0.08219746,2684.6,2684.5,3.72508]
[1739434026029,0.35069746,2684.6,2684.5,3.72508]
[1739434026225,0.35069746,2684.6,2684.5,4.55248]
[1739434026456,0.35069746,2684.6,2684.5,3.72508]
[1739434027772,0.35069746,2684.6,2684.4,3.72514]
[1739434028271,0.8197,2684.5,2684.4,3.72514]
[1739434028575,0.89446313,2684.5,2684.4,3.72514]
[1739434029073,0.015,2684.4,2684.2,3.72548]
[1739434029283,0.08224748,2684.3,2684.2,7.45091]
[1739434030126,0.08224748,2684.3,2684.2,3.72543]
[1739434030334,0.015,2684.2,2684.0,7.45143]
[1739434030532,5.305,2684.2,2684.1,3.72564]
[1739434031387,5.29,2684.2,2684.1,3.72564]
[1739434031594,0.015,2684.1,2684.0,4.46375201]
[1739434032152,0.015,2684.1,2684.0,3.72571]
[1739434033561,0.08950569,2684.1,2684.0,3.72571]
[1739434039574,0.08950569,2684.1,2684.0,3.72578]
[1739434040286,0.015,2684.1,2684.0,3.72578]
[1739434040947,0.08950074,2684.1,2684.0,3.72578]
[1739434041079,1.35335007,2684.1,2683.9,4.4553747]
[1739434041277,0.88990569,2684.1,2684.0,3.72578]
[1739434041714,0.88990569,2684.1,2683.9,8.1811547]
[1739434041917,0.88990569,2684.1,2683.9,4.4553047]
[1739434042096,0.88990569,2684.1,2684.0,3.72578]
[1739434042739,0.88990569,2684.1,2683.9,4.4552747]
[1739434043636,0.08950569,2684.1,2684.0,3.72578]
[1739434043918,0.015,2684.1,2684.0,3.72578]
[1739434044482,5.566,2684.2,2684.1,3.72564]
[1739434044682,5.64037638,2684.2,2684.1,4.53534]
[1739434045226,5.36437638,2684.2,2684.1,4.57259272]
[1739434045388,0.07437638,2684.2,2684.1,4.53534]
[1739434045741,0.276,2684.7,2684.6,3.72494]
[1739434046249,0.35033513,2684.7,2684.6,3.72494]
[1739434046723,5.13e-06,2684.7,2684.6,7.51504]
[1739434047042,5.901,2685.1,2685.0,3.72439]
[1739434047776,5.901,2685.1,2685.0,4.47489]
[1739434048637,5.97282488,2685.1,2685.0,4.47489]
[1739434049288,5.97282488,2685.1,2685.0,7.47489]
[1739434049492,0.07182488,2685.1,2685.0,7.47489]
[1739434050024,5.29,2685.5,2685.4,3.72384]
[1739434050230,0.0075,2685.8,2685.7,3.72342]
[1739434050432,0.291,2685.8,2685.6,3.72356]
[1739434050734,0.0075,2685.7,2685.5,3.72367]
[1739434051033,0.0075,2685.7,2685.6,3.72356]
[1739434052795,0.0075,2685.7,2685.5,4.45728087]
[1739434053051,0.0075,2685.7,2685.2,0.7887]
[1739434053052,0.0075,2685.7,2685.4,3.72379]
[1739434053255,0.015,2685.4,2685.1,3.72412]
[1739434053547,0.565,2685.4,2684.9,3.72441]
[1739434053751,1.069601,2685.4,2685.0,3.72436]
[1739434054480,1.069601,2685.4,2684.6,8.8802526]
[1739434054481,4.793461,2685.4,2684.8,3.72457]
[1739434054604,0.565,2685.2,2684.6,3.72482]
[1739434054804,0.565,2685.2,2684.4,0.7812]
[1739434054805,0.015,2684.6,2684.4,0.73291253]
[1739434055058,0.7779,2684.4,2684.0,3.72566]
[1739434055205,0.7779,2684.4,2684.2,3.7254]
[1739434055547,0.015,2684.4,2684.3,3.72536]
[1739434056049,0.08420616,2684.4,2684.3,3.72536]
[1739434057014,0.07670616,2684.4,2684.3,3.72536]
[1739434057214,0.34520616,2684.4,2684.3,10.2956126]
[1739434058809,0.34520616,2684.4,2684.3,6.72536]
[1739434059325,0.34520616,2684.4,2684.3,10.2956126]
[1739434062252,0.34520616,2684.4,2684.3,3.72536]
[1739434065057,0.34520616,2684.4,2684.2,3.7255]
[1739434065262,0.7974,2684.2,2684.1,0.74855237]
[1739434065462,0.0075,2684.1,2683.8,3.72596]
[1739434065661,0.0075,2684.1,2683.9,3.72584]
[1739434065960,0.06646879,2684.0,2683.9,3.72584]
[1739434066351,0.06646879,2684.0,2683.9,4.47785682]
[1739434066554,0.08146879,2684.0,2683.9,0.75193682]
[1739434066865,0.08146879,2684.0,2683.9,4.47785682]
[1739434067730,0.07396879,2684.0,2683.9,4.47785682]
[1739434069168,0.07396879,2684.0,2683.9,0.75193682]
[1739434070032,0.07396879,2684.0,2683.9,4.47785682]
[1739434075555,0.06646879,2684.0,2683.9,4.47785682]
[1739434076556,0.34246879,2684.0,2683.9,4.47785682]
[1739434077341,0.06646879,2684.0,2683.9,8.24455682]
[1739434077651,0.276,2684.3,2683.9,4.51863682]
[1739434077867,0.2835,2684.3,2684.2,3.7255]
[1739434078436,0.34751372,2684.3,2684.2,3.7255]
[1739434078684,0.07151372,2684.3,2684.2,3.7255]
[1739434078883,0.34751372,2684.3,2684.2,3.7255]
[1739434080661,0.07151372,2684.3,2683.9,4.51863682]
[1739434080866,1.11231372,2684.3,2683.9,8.20359682]
[1739434081061,0.015,2684.2,2683.9,4.47775682]
[1739434081488,0.06402276,2684.1,2683.9,4.47775682]
[1739434081682,0.06402276,2684.1,2683.9,0.75193682]
[1739434081884,0.07152276,2684.1,2684.0,3.72578]
[1739434082265,0.07152276,2684.1,2683.9,0.75193682]
[1739434082467,0.0075,2684.0,2683.9,0.75193682]
[1739434082670,0.07150503,2684.0,2683.9,0.75193682]
[1739434083069,0.07150503,2684.0,2683.9,4.47782682]
[1739434083300,0.07900503,2684.0,2683.9,4.47782682]
[1739434083882,0.07150503,2684.0,2683.9,4.47782682]
[1739434084457,0.06400503,2684.0,2683.9,4.47782682]
[1739434084658,5.29,2684.2,2683.9,0.75193682]
[1739434084960,5.29,2684.2,2684.1,3.72564]
[1739434086294,0.015,2684.1,2684.0,3.72576]
[1739434086498,0.8037,2684.1,2683.9,4.47776682]
[1739434086703,1.44067,2684.1,2683.9,0.75193682]
[1739434086907,1.44067,2684.1,2683.9,4.47781682]
[1739434087205,0.8037,2684.1,2683.9,4.47775682]
[1739434087365,0.015,2684.1,2684.0,3.72578]
[1739434088322,5.29,2684.1,2684.0,3.72578]
[1739434088964,5.2975,2684.1,2684.0,3.72578]
[1739434089618,5.2975,2684.1,2683.9,4.47775682]
[1739434090134,5.2975,2684.1,2684.0,3.72578]
[1739434091288,5.29,2684.1,2684.0,3.72578]
[1739434091566,5.29,2684.1,2684.0,11.1127326]
[1739434092742,5.29,2684.1,2684.0,7.54248]
[1739434093630,5.35374005,2684.1,2684.0,7.54248]
[1739434094260,0.06374005,2684.1,2684.0,7.54248]
[1739434094648,0.276,2684.3,2684.2,3.7255]
[1739434096068,1.0548,2684.3,2684.2,3.7255]
[1739434096370,1.0623,2684.3,2684.2,3.7255]
[1739434097160,0.276,2684.3,2684.2,3.7255]
[1739434098370,0.276,2684.3,2684.1,3.72563]
[1739434098669,0.8396,2684.2,2683.9,4.47774682]
[1739434098977,0.8396,2684.2,2684.0,3.72576]
[1739434099406,0.8396,2684.2,2684.1,3.72564]
[1739434099554,5.29,2684.6,2684.2,3.72537]
[1739434099884,0.0075,2684.3,2684.0,3.72578]
[1739434100084,0.015,2684.3,2684.0,3.72578]
[1739434100262,5.305,2684.3,2683.9,4.47774682]
[1739434100791,0.8373,2684.1,2683.9,0.75193682]
[1739434101087,0.8373,2684.1,2683.9,4.47784682]
[1739434101790,0.8373,2684.1,2684.0,3.72578]
[1739434101947,0.015,2684.1,2684.0,3.72578]
[1739434102148,0.015,2684.1,2683.9,4.47784682]
[1739434102848,0.015,2684.1,2683.9,4.47777682]
[1739434104395,0.015,2684.1,2683.9,4.47776682]
[1739434104749,0.015,2684.1,2683.9,0.75193682]
[1739434105849,0.015,2684.1,2683.9,4.47784682]
[1739434106051,0.015,2684.1,2683.9,4.47777682]
[1739434106452,3.74071,2684.1,2683.9,0.75193682]
[1739434106659,4.40338,2684.1,2683.9,0.75193682]
[1739434107000,0.67767,2684.1,2683.9,0.75193682]
[1739434107311,0.015,2684.1,2683.9,0.75193682]
[1739434108277,0.015,2684.1,2683.8,3.72601]
[1739434108677,0.0075,2683.9,2683.8,3.72601]
[1739434109078,0.06642497,2683.9,2683.8,3.72601]
[1739434109504,0.06642497,2683.9,2683.8,0.76089345]
[1739434109799,0.0075,2683.7,2683.5,3.7264]
[1739434110011,0.0075,2683.3,2682.5,3.5702526]
[1739434110219,0.0075,2683.3,2682.0,0.985]
[1739434110220,3.72734,2682.9,2682.8,0.76007376]
[1739434110367,0.55,2682.8,2682.2,3.72816]
[1739434110568,0.015,2682.7,2682.3,3.72805]
[1739434110771,0.07347678,2682.7,2682.2,3.72816]
[1739434111163,0.07347678,2682.7,2682.4,3.72791]
[1739434111388,0.07347678,2682.7,2682.6,3.72772]
[1739434111605,0.07347678,2682.7,2682.5,3.72786]
[1739434112909,0.07347678,2682.7,2682.5,3.72777]
[1739434113095,0.07347678,2682.7,2682.6,3.72772]
[1739434114924,0.07347678,2682.7,2682.5,3.72777]
[1739434115083,0.015,2682.5,2682.3,3.72807]
[1739434115481,0.07029775,2682.4,2682.3,3.72807]
[1739434115843,0.0075,2682.2,2682.1,3.72833]
[1739434115971,0.2835,2682.2,2682.1,3.72833]
[1739434116337,0.2835,2682.2,2682.0,0.985]
[1739434116338,0.0075,2682.1,2682.0,0.985]
[1739434116542,0.0075,2682.1,2682.0,4.71356]
[1739434116828,0.07017522,2682.1,2682.0,4.71356]
[1739434118115,0.33117522,2682.1,2682.0,4.71356]
[1739434119626,0.34617522,2682.1,2682.0,4.71356]
[1739434121197,0.34617522,2682.1,2682.0,0.985]
[1739434124588,0.33117522,2682.1,2682.0,5.51456]
[1739434125001,0.33117522,2682.1,2682.0,4.71356]
[1739434125203,0.34617522,2682.1,2682.0,4.71356]
[1739434125501,2.25439274,2682.1,2682.0,0.985]
[1739434126705,0.34617522,2682.1,2682.0,4.71356]
[1739434128208,0.34617522,2682.1,2682.0,0.985]
[1739434131048,0.89617522,2682.1,2682.0,0.985]
[1739434132111,0.34617522,2682.1,2682.0,0.985]
[1739434134755,0.34617522,2682.1,2682.0,4.71356]
[1739434135260,0.34617522,2682.1,2682.0,0.985]
[1739434135411,0.34617522,2682.1,2682.0,4.71356]
[1739434135617,0.34617522,2682.1,2682.0,0.985]
[1739434135916,0.34617522,2682.1,2682.0,4.71356]
[1739434135917,5.63617522,2682.1,2682.0,4.71356]
[1739434136470,0.33117522,2682.1,2682.0,4.71356]
[1739434136615,0.276,2682.1,2682.0,4.71356]
[1739434137016,0.565,2682.6,2682.5,3.72786]
[1739434137017,0.0075,2682.6,2682.5,3.72786]
[1739434137218,0.2835,2682.6,2682.5,3.72786]
[1739434137646,0.276,2682.6,2682.5,3.72786]
[1739434137871,5.29,2682.8,2682.4,3.76526657]
[1739434137872,5.305,2682.8,2682.7,3.72758]
[1739434138040,5.581,2682.8,2682.7,3.72758]
[1739434138565,0.05117566,2682.8,2682.7,3.72758]
[1739434138727,0.32717566,2682.8,2682.7,3.72758]
[1739434139079,0.015,2682.7,2682.5,3.72783]
[1739434139387,0.015,2682.7,2682.6,3.72772]
[1739434140661,0.015,2682.7,2682.5,4.46680115]
[1739434141967,0.565,2682.5,2682.1,3.72836]
[1739434142260,0.75726,2682.5,2682.1,3.72836]
[1739434142639,0.75726,2682.5,2682.1,3.72831]
[1739434143039,0.75726,2682.5,2682.2,3.72817]
[1739434143262,0.75726,2682.5,2682.1,3.72831]
[1739434143468,0.75726,2682.5,2682.0,1.4826]
[1739434143624,0.0075,2682.2,2682.0,5.21114]
[1739434144340,0.0075,2682.2,2682.0,5.94538043]
[1739434144733,0.0075,2682.2,2682.0,2.21684043]
[1739434144951,0.0075,2682.2,2682.1,3.72842]
[1739434145356,0.61612065,2682.2,2682.1,3.72842]
[1739434145638,0.0075,2682.1,2682.0,5.94538043]
[1739434146077,0.0660392,2682.1,2682.0,5.94538043]
[1739434146259,0.0660392,2682.1,2682.0,5.94540043]
[1739434146789,0.0510392,2682.1,2682.0,5.94540043]
[1739434146942,0.0510392,2682.1,2682.0,6.71900043]
[1739434147143,0.2835,2682.2,2682.1,3.72842]
[1739434148262,5.29,2682.3,2682.2,6.72828]
[1739434148470,5.905,2683.2,2683.0,3.72709]
[1739434148664,0.276,2683.1,2683.0,3.72709]
[1739434148871,0.015,2683.0,2682.7,4.53008]
[1739434149069,0.015,2683.0,2682.7,3.72758]
[1739434149394,0.565,2683.0,2682.6,4.47492093]
[1739434149588,0.565,2683.0,2682.8,3.72737]
[1739434149787,0.565,2683.0,2682.6,8.20254093]
[1739434150012,0.83664293,2683.9,2682.7,0.8028]
[1739434150169,0.276,2683.6,2683.4,3.7266]
[1739434150385,0.0075,2683.4,2683.0,3.72707]
[1739434150583,0.015,2683.4,2682.9,3.7273]
[1739434150969,0.015,2683.4,2683.0,3.72712]
[1739434151306,0.8059,2683.2,2682.4,0.7938]
[1739434151485,0.0075,2683.0,2682.8,4.45822063]
[1739434151800,0.0075,2683.0,2682.8,4.45816063]
[1739434151947,0.7668,2683.5,2683.1,3.72703]
[1739434152157,0.7668,2683.5,2683.2,3.72689]
[1739434152349,0.015,2683.4,2683.2,3.72689]
[1739434152576,0.565,2683.4,2683.2,3.72689]
[1739434152778,0.565,2683.4,2683.0,7.45424]
[1739434152991,0.565,2683.4,2682.9,0.8332]
[1739434153152,0.015,2683.2,2682.9,3.72729]
[1739434153351,0.015,2683.2,2682.8,4.45815063]
[1739434153552,0.0075,2683.0,2682.8,4.45815063]
[1739434154017,0.0075,2683.0,2682.8,0.73080063]
[1739434154219,0.60809343,2682.9,2682.8,0.73080063]
[1739434154395,0.55,2682.8,2682.7,3.72757]
[1739434154599,0.55,2682.8,2682.7,4.48633494]
[1739434154764,0.59306701,2682.8,2682.7,4.48633494]
[1739434155295,5.89056701,2682.8,2682.4,3.72795]
[1739434155596,0.0075,2682.7,2682.5,3.72784]
[1739434155906,0.33403153,2682.6,2682.5,3.72784]
[1739434156188,0.33403153,2682.6,2682.5,4.46847582]
[1739434157564,0.88403153,2682.6,2682.5,0.74063582]
[1739434157752,0.015,2682.5,2682.4,3.728]
[1739434157952,0.015,2682.5,2682.4,0.75748201]
[1739434158174,0.05778232,2682.5,2682.4,4.48548201]
[1739434159407,0.05778232,2682.5,2682.4,0.75748201]
[1739434159781,0.05778232,2682.5,2682.3,3.72806]
[1739434160003,0.05778232,2682.5,2682.3,4.47033572]
[1739434160179,0.88738232,2682.5,2682.3,4.47033572]
[1739434160570,0.05778232,2682.5,2682.4,3.728]
[1739434161367,0.05778232,2682.5,2682.3,4.47032572]
[1739434161827,0.05778232,2682.5,2682.4,3.728]
[1739434162516,5.34778232,2682.5,2682.4,3.728]
[1739434163416,5.33278232,2682.5,2682.4,4.5085]
[1739434163777,0.04278232,2682.5,2682.4,7.5085]
[1739434164172,0.276,2682.8,2682.7,3.72758]
[1739434164789,0.2835,2682.8,2682.6,7.45534]
[1739434165116,0.0075,2682.7,2682.6,3.72763]
[1739434165977,0.015,2682.7,2682.5,3.72785]
[1739434166309,5.305,2682.7,2682.5,3.72778]
[1739434166512,5.8631,2682.7,2682.5,3.72778]
[1739434166720,5.8631,2682.7,2682.5,7.45554]
[1739434167197,5.8631,2682.7,2682.5,3.72776]
[1739434167398,6.4131,2682.7,2682.6,3.72772]
[1739434167617,5.855,2682.7,2682.6,3.72772]
[1739434167940,5.581,2682.7,2682.6,4.49132]
[1739434168531,5.62067715,2682.7,2682.6,3.72772]
[1739434169215,5.62067715,2682.7,2682.5,3.72776]
[1739434169391,5.62067715,2682.7,2682.6,3.72772]
[1739434169591,0.33067715,2682.7,2682.6,3.72772]
[1739434170996,0.31567715,2682.7,2682.6,3.72772]
[1739434171333,0.276,2682.7,2682.6,3.72772]
[1739434171500,0.276,2682.7,2682.4,0.7999]
[1739434171702,0.276,2682.7,2682.6,3.72772]
[1739434174278,0.015,2682.6,2682.5,3.72786]
[1739434174592,0.05321034,2682.6,2682.5,3.72786]
[1739434175330,0.05321034,2682.6,2682.4,3.72793]
[1739434175703,0.05321034,2682.6,2682.5,3.72786]
[1739434177917,0.05321034,2682.6,2682.4,3.72788]
[1739434178239,0.61513137,2682.6,2682.4,3.72788]
[1739434178534,0.61513137,2682.6,2682.5,3.72786]
[1739434178741,0.03821034,2682.6,2682.5,3.72786]
[1739434179134,0.015,2682.5,2682.4,3.72788]
[1739434179501,0.05319259,2682.5,2682.4,3.72788]
[1739434179810,0.05319259,2682.5,2682.2,0.8202]
[1739434179811,0.015,2682.3,2682.2,3.72821]
[1739434180006,5.305,2682.3,2682.2,3.72821]
[1739434180343,5.95737176,2682.3,2682.2,3.72821]
[1739434180528,6.50737176,2682.3,2682.0,5.21106]
[1739434180914,6.50737176,2682.3,2682.2,3.72828]
[1739434181127,6.50737176,2682.3,2682.1,3.72829]
[1739434181921,5.3356725,2682.3,2682.2,3.72828]
[1739434182116,5.3356725,2682.3,2682.1,7.45662]
[1739434182426,5.3356725,2682.3,2682.2,3.72828]
[1739434184066,5.6041725,2682.3,2682.2,4.49118]
[1739434185023,0.0381725,2682.3,2682.2,11.0614326]
[1739434185247,0.276,2682.6,2682.2,10.2985326]
[1739434185456,0.276,2682.6,2682.5,11.0919126]
[1739434185769,0.276,2682.9,2682.8,3.72732]
[1739434186130,0.31410109,2682.9,2682.8,3.72732]
[1739434187523,0.31410109,2682.9,2682.7,3.72754]
[1739434188141,0.31410109,2682.9,2682.8,3.72744]
[1739434188743,0.31410109,2682.9,2682.7,3.72754]
[1739434188946,0.31410109,2682.9,2682.7,3.72748]
[1739434189141,0.31410109,2682.9,2682.8,3.72744]
[1739434191664,0.31410109,2682.9,2682.7,7.45497]
[1739434191847,0.31410109,2682.9,2682.7,3.72748]
[1739434192058,0.31410109,2682.9,2682.8,4.47490706]
[1739434197092,0.31410109,2682.9,2682.8,8.27780706]
[1739434197282,0.03810109,2682.9,2682.8,11.84805966]
[1739434197463,1.3e-07,2682.9,2682.8,11.84805966]
[1739434197651,0.276,2683.5,2682.9,3.0]
[1739434197858,0.276,2683.5,2682.8,11.04515966]
[1739434197859,0.276,2683.5,2683.4,3.72661]
[1739434198757,0.291,2683.5,2683.2,4.47918]
[1739434198979,0.015,2683.4,2683.2,3.72688]
[1739434199167,0.7696,2683.4,2683.1,3.72703]
[1739434199493,0.7696,2683.4,2683.0,3.7271]
[1739434199689,0.7696,2683.4,2683.0,7.45417]
[1739434199893,0.7696,2683.4,2683.1,3.72694]
[1739434200066,0.7696,2683.4,2683.2,3.7268]